fUST/lending_fUST_20251213
["ID","MTS","AMOUNT","RATE_DAILY","PERIOD"]
[398371619,1765559253402,-1143.61,0.00042465,120]
[398371621,1765559253448,-1325.92,0.00042465,120]
[398371622,1765559253491,-1251.6,0.00042465,120]
[398371624,1765559253538,-3129.74,0.00042465,120]
[398371626,1765559253588,-2104.79,0.00042465,120]
[398371628,1765559253633,-3190.1,0.00042465,120]
[398371630,1765559253674,-3783.5,0.00042465,120]
[398371632,1765559253713,-1478.1,0.00042465,120]
[398371634,1765559253756,-10320.71,0.00042465,120]
[398371635,1765559253799,-1170.68,0.00042465,120]
[398371637,1765559253843,-500.0,0.00042465,120]
[398371639,1765559253882,-500.0,0.00042465,120]
[398371641,1765559253926,-1983.33,0.00042465,120]
[398371642,1765559253966,-371.64,0.00042465,120]
[398371644,1765559254010,-1523.65,0.00042465,120]
[398371646,1765559254054,-830.76,0.00042465,120]
[398371648,1765559254096,-500.0,0.00042465,120]
[398371650,1765559254136,-1671.52,0.00042465,120]
[398371652,1765559254180,-2738.41,0.00042465,120]
[398371653,1765559254226,-500.0,0.00042465,120]
[398371655,1765559254276,-1681.97,0.00042465,120]
[398371657,1765559254324,-888.0,0.00042465,120]
[398371659,1765559254371,-2139.91,0.00042465,120]
[398371661,1765559254418,-2298.72,0.00042465,120]
[398371663,1765559254463,-1481.27,0.00042465,120]
[398371665,1765559254505,-1504.62,0.00042465,120]
[398371666,1765559254551,-500.0,0.00042465,120]
[398371671,1765559254804,-5032.62,0.00042465,120]
[398371673,1765559254849,-500.0,0.00042465,120]
[398371675,1765559254892,-1875.89,0.00042465,120]
[398371677,1765559254935,-672.23,0.00042465,120]
[398371679,1765559254975,-500.0,0.00042465,120]
[398371681,1765559255016,-558.94,0.00042465,120]
[398371682,1765559255058,-1234.93,0.00042465,120]
[398371684,1765559255103,-20681.97,0.00042465,120]
[398371686,1765559255146,-362.21139319,0.00042465,60]
[398371688,1765559255189,-2038.97,0.00042465,120]
[398371690,1765559255234,-1641.36,0.00042465,120]
[398371692,1765559255275,-500.0,0.00042465,120]
[398371693,1765559255317,-500.0,0.00042465,120]
[398371695,1765559255365,-500.0,0.00042465,120]
[398371696,1765559255412,-1642.86,0.00042465,120]
[398371697,1765559255460,-500.0,0.00042465,120]
[398371698,1765559255507,-632.32945859,0.00042465,120]
[398371699,1765559255557,-513.05,0.00042465,60]
[398371700,1765559255606,-16052.6,0.00042465,120]
[398371701,1765559255655,-1350.51,0.00042465,120]
[398371703,1765559255699,-500.0,0.00042465,120]
[398371705,1765559255744,-615.38,0.00042465,120]
[398371707,1765559255785,-1014.18,0.00042465,120]
[398371709,1765559255827,-731.22,0.00042465,120]
[398371711,1765559255874,-500.0,0.00042465,120]
[398371713,1765559255918,-1750.24,0.00042465,120]
[398371714,1765559255966,-500.0,0.00042465,120]
[398371716,1765559256014,-2037.28,0.00042465,120]
[398371718,1765559256063,-3597.56,0.00042465,120]
[398371720,1765559256121,-500.0,0.00042465,120]
[398371722,1765559256175,-500.0,0.00042465,120]
[398371724,1765559256229,-500.0,0.00042465,120]
[398371726,1765559256287,-628.99,0.00042465,120]
[398371728,1765559256340,-500.0,0.00042465,120]
[398371730,1765559256390,-500.0,0.00042465,120]
[398371732,1765559256437,-502.64,0.00042465,120]
[398371734,1765559256482,-500.0,0.00042465,120]
[398371736,1765559256523,-500.0,0.00042465,120]
[398371738,1765559256565,-524.01,0.00042465,120]
[398371739,1765559256607,-1244.67,0.00042465,120]
[398371741,1765559256652,-500.0,0.00042465,120]
[398371743,1765559256695,-517.94,0.00042465,120]
[398371745,1765559256738,-176.08022111,0.000427,120]
[398371747,1765559256781,-183.43358368,0.000427,120]
[398371749,1765559256822,-2425.27,0.00042739,120]
[398371751,1765559256867,-6704.86,0.00042739,120]
[398371752,1765559256911,-597.47,0.00042739,120]
[398371754,1765559256957,-1143.61,0.00042739,120]
[398371756,1765559257000,-1325.92,0.00042739,120]
[398371758,1765559257043,-1251.6,0.00042739,120]
[398371760,1765559257084,-3129.74,0.00042739,120]
[398371762,1765559257128,-2104.79,0.00042739,120]
[398371763,1765559257171,-3190.1,0.00042739,120]
[398371765,1765559257218,-3783.5,0.00042739,120]
[398371767,1765559257263,-1478.1,0.00042739,120]
[398371769,1765559257308,-10320.71,0.00042739,120]
[398371771,1765559257357,-1170.68,0.00042739,120]
[398371773,1765559257407,-500.0,0.00042739,120]
[398371775,1765559257455,-500.0,0.00042739,120]
[398371776,1765559257502,-1983.33,0.00042739,120]
[398371778,1765559257551,-1523.65,0.00042739,120]
[398371780,1765559257601,-830.76,0.00042739,120]
[398371782,1765559257648,-500.0,0.00042739,120]
[398371784,1765559257693,-1671.52,0.00042739,120]
[398371786,1765559257735,-2738.41,0.00042739,120]
[398371787,1765559257778,-500.0,0.00042739,120]
[398371790,1765559257855,-1681.97,0.00042739,120]
[398371792,1765559257899,-888.0,0.00042739,120]
[398371793,1765559257946,-2139.91,0.00042739,120]
[398371795,1765559257994,-2298.72,0.00042739,120]
[398371797,1765559258043,-1481.27,0.00042739,120]
[398371799,1765559258090,-1504.62,0.00042739,120]
[398371801,1765559258139,-500.0,0.00042739,120]
[398371803,1765559258186,-5032.62,0.00042739,120]
[398371805,1765559258232,-500.0,0.00042739,120]
[398371806,1765559258279,-1875.89,0.00042739,120]
[398371808,1765559258330,-672.23,0.00042739,120]
[398371810,1765559258383,-500.0,0.00042739,120]
[398371812,1765559258434,-558.94,0.00042739,120]
[398371814,1765559258484,-1234.93,0.00042739,120]
[398371816,1765559258529,-20681.97,0.00042739,120]
[398371818,1765559258573,-362.21139319,0.00042739,60]
[398371819,1765559258623,-2038.97,0.00042739,120]
[398371821,1765559258675,-1641.36,0.00042739,120]
[398371823,1765559258727,-500.0,0.00042739,120]
[398371825,1765559258775,-500.0,0.00042739,120]
[398371827,1765559258818,-500.0,0.00042739,120]
[398371829,1765559258863,-1642.86,0.00042739,120]
[398371831,1765559258912,-500.0,0.00042739,120]
[398371832,1765559258962,-513.05,0.00042739,60]
[398371834,1765559259016,-16052.6,0.00042739,120]
[398371836,1765559259067,-1350.51,0.00042739,120]
[398371838,1765559259115,-500.0,0.00042739,120]
[398371840,1765559259162,-615.38,0.00042739,120]
[398371842,1765559259207,-1014.18,0.00042739,120]
[398371844,1765559259254,-731.22,0.00042739,120]
[398371845,1765559259299,-500.0,0.00042739,120]
[398371847,1765559259345,-1750.24,0.00042739,120]
[398371849,1765559259391,-500.0,0.00042739,120]
[398371851,1765559259436,-2037.28,0.00042739,120]
[398371853,1765559259478,-3597.56,0.00042739,120]
[398371855,1765559259523,-500.0,0.00042739,120]
[398371857,1765559259565,-500.0,0.00042739,120]
[398371858,1765559259608,-500.0,0.00042739,120]
[398371860,1765559259653,-628.99,0.00042739,120]
[398371862,1765559259694,-500.0,0.00042739,120]
[398371864,1765559259732,-500.0,0.00042739,120]
[398371866,1765559259773,-502.64,0.00042739,120]
[398371867,1765559259813,-574.79573235,0.00042739,120]
[398371869,1765559259856,-500.0,0.00042739,120]
[398371871,1765559259897,-524.01,0.00042739,120]
[398371873,1765559259939,-1244.67,0.00042739,120]
[398371875,1765559259980,-517.94,0.00042739,120]
[398371877,1765559260020,-500.0,0.00042739,120]
[398371878,1765559260062,-2425.27,0.00043013,120]
[398371880,1765559260112,-6704.86,0.00043013,120]
[398371882,1765559260160,-597.47,0.00043013,120]
[398371884,1765559260207,-1143.61,0.00043013,120]
[398371886,1765559260258,-1325.92,0.00043013,120]
[398371888,1765559260307,-1251.6,0.00043013,120]
[398371890,1765559260353,-3129.74,0.00043013,120]
[398371892,1765559260395,-2104.79,0.00043013,120]
[398371893,1765559260441,-3190.1,0.00043013,120]
[398371895,1765559260487,-3783.5,0.00043013,120]
[398371897,1765559260529,-1478.1,0.00043013,120]
[398371899,1765559260573,-10320.71,0.00043013,120]
[398371901,1765559260616,-1170.68,0.00043013,120]
[398371902,1765559260661,-500.0,0.00043013,120]
[398371904,1765559260702,-323.41351264,0.00043013,120]
[398371906,1765559260740,-1983.33,0.00043013,120]
[398371907,1765559260781,-1523.65,0.00043013,120]
[398371908,1765559260823,-830.76,0.00043013,120]
[398371909,1765559260869,-500.0,0.00043013,120]
[398371910,1765559260919,-1671.52,0.00043013,120]
[398371911,1765559260965,-2738.41,0.00043013,120]
[398371912,1765559261015,-500.0,0.00043013,120]
[398371913,1765559261058,-1681.97,0.00043013,120]
[398371914,1765559261101,-888.0,0.00043013,120]
[398371915,1765559261144,-2139.91,0.00043013,120]
[398371917,1765559261186,-2298.72,0.00043013,120]
[398371919,1765559261228,-1100.0,0.00043013,60]
[398371921,1765559261270,-1481.27,0.00043013,120]
[398371923,1765559261310,-1504.62,0.00043013,120]
[398371925,1765559261351,-500.0,0.00043013,120]
[398371926,1765559261392,-5032.62,0.00043013,120]
[398371928,1765559261437,-500.0,0.00043013,120]
[398371930,1765559261480,-1875.89,0.00043013,120]
[398371932,1765559261520,-672.23,0.00043013,120]
[398371934,1765559261560,-500.0,0.00043013,120]
[398371936,1765559261601,-558.94,0.00043013,120]
[398371937,1765559261642,-1234.93,0.00043013,120]
[398371939,1765559261683,-20681.97,0.00043013,120]
[398371941,1765559261722,-362.21139319,0.00043013,60]
[398371943,1765559261763,-2038.97,0.00043013,120]
[398371945,1765559261804,-1641.36,0.00043013,120]
[398371947,1765559261843,-500.0,0.00043013,120]
[398371949,1765559261883,-500.0,0.00043013,120]
[398371950,1765559261926,-500.0,0.00043013,120]
[398371952,1765559261971,-1642.86,0.00043013,120]
[398371954,1765559262015,-500.0,0.00043013,120]
[398371956,1765559262058,-513.05,0.00043013,60]
[398371958,1765559262106,-16052.6,0.00043013,120]
[398371961,1765559262247,-1350.51,0.00043013,120]
[398371963,1765559262298,-404.7153098,0.00043013,120]
[398371965,1765559262346,-615.38,0.00043013,120]
[398371967,1765559262393,-1014.18,0.00043013,120]
[398371969,1765559262441,-731.22,0.00043013,120]
[398371971,1765559262485,-500.0,0.00043013,120]
[398371973,1765559262529,-1750.24,0.00043013,120]
[398371975,1765559262571,-500.0,0.00043013,120]
[398371976,1765559262613,-2037.28,0.00043013,120]
[398371978,1765559262658,-3597.56,0.00043013,120]
[398371980,1765559262702,-500.0,0.00043013,120]
[398371982,1765559262745,-500.0,0.00043013,120]
[398371984,1765559262787,-500.0,0.00043013,120]
[398371986,1765559262829,-628.99,0.00043013,120]
[398371988,1765559262875,-500.0,0.00043013,120]
[398371989,1765559262920,-500.0,0.00043013,120]
[398371991,1765559262966,-502.64,0.00043013,120]
[398371993,1765559263024,-500.0,0.00043013,120]
[398371995,1765559263073,-524.01,0.00043013,120]
[398371997,1765559263119,-1244.67,0.00043013,120]
[398371999,1765559263166,-500.0,0.00043013,120]
[398372001,1765559263209,-517.94,0.00043013,120]
[398372003,1765559263253,-2425.27,0.00043287,120]
[398372005,1765559263298,-6704.86,0.00043287,120]
[398372007,1765559263341,-597.47,0.00043287,120]
[398372008,1765559263387,-1143.61,0.00043287,120]
[398372010,1765559263434,-1325.92,0.00043287,120]
[398372012,1765559263481,-1251.6,0.00043287,120]
[398372014,1765559263524,-3129.74,0.00043287,120]
[398372016,1765559263566,-2104.79,0.00043287,120]
[398372018,1765559263608,-3190.1,0.00043287,120]
[398372019,1765559263650,-3783.5,0.00043287,120]
[398372021,1765559263696,-1478.1,0.00043287,120]
[398372023,1765559263744,-10320.71,0.00043287,120]
[398372025,1765559263788,-1170.68,0.00043287,120]
[398372027,1765559263833,-500.0,0.00043287,120]
[398372029,1765559263877,-1983.33,0.00043287,120]
[398372031,1765559263922,-1523.65,0.00043287,120]
[398372033,1765559263965,-830.76,0.00043287,120]
[398372035,1765559264006,-500.0,0.00043287,120]
[398372037,1765559264055,-1671.52,0.00043287,120]
[398372038,1765559264098,-2738.41,0.00043287,120]
[398372040,1765559264146,-500.0,0.00043287,120]
[398372042,1765559264198,-1681.97,0.00043287,120]
[398372044,1765559264245,-888.0,0.00043287,120]
[398372046,1765559264299,-2139.91,0.00043287,120]
[398372048,1765559264344,-2298.72,0.00043287,120]
[398372049,1765559264391,-1481.27,0.00043287,120]
[398372051,1765559264439,-1504.62,0.00043287,120]
[398372053,1765559264484,-500.0,0.00043287,120]
[398372055,1765559264528,-5032.62,0.00043287,120]
[398372057,1765559264571,-500.0,0.00043287,120]
[398372059,1765559264615,-1875.89,0.00043287,120]
[398372060,1765559264659,-672.23,0.00043287,120]
[398372062,1765559264703,-500.0,0.00043287,120]
[398372064,1765559264745,-558.94,0.00043287,120]
[398372066,1765559264786,-1234.93,0.00043287,120]
[398372068,1765559264828,-20681.97,0.00043287,120]
[398372070,1765559264877,-362.21139319,0.00043287,60]
[398372072,1765559264926,-2038.97,0.00043287,120]
[398372073,1765559264974,-1641.36,0.00043287,120]
[398372075,1765559265024,-500.0,0.00043287,120]
[398372077,1765559265072,-500.0,0.00043287,120]
[398372079,1765559265118,-500.0,0.00043287,120]
[398372081,1765559265169,-1642.86,0.00043287,120]
[398372082,1765559265215,-500.0,0.00043287,120]
[398372084,1765559265266,-513.05,0.00043287,60]
[398372086,1765559265318,-16052.6,0.00043287,120]
[398372088,1765559265371,-1350.51,0.00043287,120]
[398372090,1765559265426,-615.38,0.00043287,120]
[398372092,1765559265477,-1014.18,0.00043287,120]
[398372094,1765559265526,-731.22,0.00043287,120]
[398372096,1765559265573,-500.0,0.00043287,120]
[398372098,1765559265619,-1750.24,0.00043287,120]
[398372099,1765559265669,-500.0,0.00043287,120]
[398372101,1765559265721,-2037.28,0.00043287,120]
[398372103,1765559265778,-3597.56,0.00043287,120]
[398372105,1765559265827,-500.0,0.00043287,120]
[398372107,1765559265880,-500.0,0.00043287,120]
[398372109,1765559265931,-236.68543105,0.00043287,120]
[398372111,1765559265979,-628.99,0.00043287,120]
[398372113,1765559266026,-500.0,0.00043287,120]
[398372115,1765559266070,-500.0,0.00043287,120]
[398372116,1765559266118,-502.64,0.00043287,120]
[398372118,1765559266358,-500.0,0.00043287,120]
[398372119,1765559266415,-524.01,0.00043287,120]
[398372121,1765559266464,-1244.67,0.00043287,120]
[398372123,1765559266510,-500.0,0.00043287,120]
[398372125,1765559266554,-517.94,0.00043287,120]
[398372127,1765559266599,-1100.0,0.00043561,60]
[398372129,1765559266645,-2425.27,0.00043561,120]
[398372131,1765559266691,-6704.86,0.00043561,120]
[398372132,1765559266739,-597.47,0.00043561,120]
[398372134,1765559266785,-1143.61,0.00043561,120]
[398372136,1765559266831,-1325.92,0.00043561,120]
[398372138,1765559266874,-1251.6,0.00043561,120]
[398372140,1765559266918,-3129.74,0.00043561,120]
[398372142,1765559266962,-2104.79,0.00043561,120]
[398372143,1765559267012,-3190.1,0.00043561,120]
[398372145,1765559267062,-3783.5,0.00043561,120]
[398372147,1765559267110,-1478.1,0.00043561,120]
[398372149,1765559267159,-10320.71,0.00043561,120]
[398372151,1765559267202,-1170.68,0.00043561,120]
[398372153,1765559267245,-500.0,0.00043561,120]
[398372155,1765559267289,-1983.33,0.00043561,120]
[398372156,1765559267334,-1523.65,0.00043561,120]
[398372158,1765559267383,-830.76,0.00043561,120]
[398372160,1765559267432,-500.0,0.00043561,120]
[398372162,1765559267481,-1671.52,0.00043561,120]
[398372164,1765559267527,-2738.41,0.00043561,120]
[398372166,1765559267571,-500.0,0.00043561,120]
[398372168,1765559267618,-1681.97,0.00043561,120]
[398372170,1765559267664,-888.0,0.00043561,120]
[398372171,1765559267709,-2139.91,0.00043561,120]
[398372173,1765559267755,-2298.72,0.00043561,120]
[398372175,1765559267803,-1481.27,0.00043561,120]
[398372177,1765559267849,-1504.62,0.00043561,120]
[398372179,1765559267894,-404.29470124,0.00043561,120]
[398372181,1765559267941,-5032.62,0.00043561,120]
[398372182,1765559267984,-500.0,0.00043561,120]
[398372184,1765559268031,-1875.89,0.00043561,120]
[398372186,1765559268075,-672.23,0.00043561,120]
[398372188,1765559268119,-500.0,0.00043561,120]
[398372190,1765559268166,-558.94,0.00043561,120]
[398372191,1765559268213,-1234.93,0.00043561,120]
[398372193,1765559268262,-20681.97,0.00043561,120]
[398372195,1765559268312,-362.21139319,0.00043561,60]
[398372197,1765559268362,-2038.97,0.00043561,120]
[398372199,1765559268411,-1641.36,0.00043561,120]
[398372201,1765559268459,-500.0,0.00043561,120]
[398372203,1765559268511,-500.0,0.00043561,120]
[398372205,1765559268559,-500.0,0.00043561,120]
[398372206,1765559268611,-1642.86,0.00043561,120]
[398372208,1765559268664,-500.0,0.00043561,120]
[398372210,1765559268716,-513.05,0.00043561,60]
[398372212,1765559268764,-16052.6,0.00043561,120]
[398372214,1765559268811,-1350.51,0.00043561,120]
[398372216,1765559268856,-615.38,0.00043561,120]
[398372218,1765559268904,-1014.18,0.00043561,120]
[398372220,1765559268955,-731.22,0.00043561,120]
[398372221,1765559269010,-500.0,0.00043561,120]
[398372223,1765559269060,-1750.24,0.00043561,120]
[398372225,1765559269109,-500.0,0.00043561,120]
[398372227,1765559269161,-2037.28,0.00043561,120]
[398372229,1765559269212,-3597.56,0.00043561,120]
[398372231,1765559269260,-500.0,0.00043561,120]
[398372233,1765559269309,-500.0,0.00043561,120]
[398372235,1765559269356,-628.99,0.00043561,120]
[398372237,1765559269401,-500.0,0.00043561,120]
[398372238,1765559269447,-500.0,0.00043561,120]
[398372240,1765559269500,-502.64,0.00043561,120]
[398372243,1765559269601,-500.0,0.00043561,120]
[398372245,1765559269647,-524.01,0.00043561,120]
[398372247,1765559269690,-1244.67,0.00043561,120]
[398372249,1765559269731,-500.0,0.00043561,120]
[398372251,1765559269772,-517.94,0.00043561,120]
[398372252,1765559269815,-2425.27,0.00043835,120]
[398372254,1765559269861,-6704.86,0.00043835,120]
[398372256,1765559269907,-597.47,0.00043835,120]
[398372258,1765559269951,-1143.61,0.00043835,120]
[398372260,1765559269998,-1325.92,0.00043835,120]
[398372262,1765559270040,-1251.6,0.00043835,120]
[398372264,1765559270083,-3129.74,0.00043835,120]
[398372265,1765559270126,-2104.79,0.00043835,120]
[398372267,1765559270173,-3190.1,0.00043835,120]
[398372269,1765559270219,-3783.5,0.00043835,120]
[398372271,1765559270263,-1478.1,0.00043835,120]
[398372273,1765559270308,-10320.71,0.00043835,120]
[398372275,1765559270354,-1170.68,0.00043835,120]
[398372277,1765559270410,-500.0,0.00043835,120]
[398372278,1765559270458,-1983.33,0.00043835,120]
[398372280,1765559270510,-1523.65,0.00043835,120]
[398372282,1765559270561,-830.76,0.00043835,120]
[398372284,1765559270613,-500.0,0.00043835,120]
[398372286,1765559270663,-1671.52,0.00043835,120]
[398372288,1765559270711,-2738.41,0.00043835,120]
[398372290,1765559270757,-500.0,0.00043835,120]
[398372292,1765559270802,-1681.97,0.00043835,120]
[398372293,1765559270848,-888.0,0.00043835,120]
[398372295,1765559270897,-2139.91,0.00043835,120]
[398372297,1765559270951,-2298.72,0.00043835,120]
[398372299,1765559271010,-1481.27,0.00043835,120]
[398372301,1765559271064,-1504.62,0.00043835,120]
[398372303,1765559271111,-5032.62,0.00043835,120]
[398372305,1765559271156,-500.0,0.00043835,120]
[398372306,1765559271201,-1875.89,0.00043835,120]
[398372308,1765559271251,-672.23,0.00043835,120]
[398372310,1765559271296,-500.0,0.00043835,120]
[398372312,1765559271342,-558.94,0.00043835,120]
[398372314,1765559271392,-1234.93,0.00043835,120]
[398372316,1765559271441,-20681.97,0.00043835,120]
[398372318,1765559271489,-362.21139319,0.00043835,60]
[398372320,1765559271536,-2038.97,0.00043835,120]
[398372321,1765559271586,-1641.36,0.00043835,120]
[398372322,1765559271634,-500.0,0.00043835,120]
[398372323,1765559271682,-500.0,0.00043835,120]
[398372324,1765559271727,-500.0,0.00043835,120]
[398372325,1765559271776,-1642.86,0.00043835,120]
[398372327,1765559271820,-500.0,0.00043835,120]
[398372328,1765559271869,-513.05,0.00043835,60]
[398372330,1765559271920,-16052.6,0.00043835,120]
[398372332,1765559271971,-1350.51,0.00043835,120]
[398372334,1765559272022,-615.38,0.00043835,120]
[398372336,1765559272070,-1014.18,0.00043835,120]
[398372337,1765559272118,-731.22,0.00043835,120]
[398372339,1765559272174,-500.0,0.00043835,120]
[398372341,1765559272228,-1750.24,0.00043835,120]
[398372343,1765559272277,-323.95340148,0.00043835,120]
[398372345,1765559272327,-2037.28,0.00043835,120]
[398372347,1765559272375,-3597.56,0.00043835,120]
[398372349,1765559272420,-500.0,0.00043835,120]
[398372350,1765559272465,-500.0,0.00043835,120]
[398372352,1765559272514,-628.99,0.00043835,120]
[398372354,1765559272563,-500.0,0.00043835,120]
[398372356,1765559272609,-500.0,0.00043835,120]
[398372358,1765559272653,-502.64,0.00043835,120]
[398372360,1765559272699,-500.0,0.00043835,120]
[398372362,1765559272746,-524.01,0.00043835,120]
[398372363,1765559272790,-1244.67,0.00043835,120]
[398372365,1765559272841,-2083.5742709,0.00043888,54]
[398372367,1765559272889,-183.43358368,0.00044,120]
[398372369,1765559272940,-1100.0,0.00044109,60]
[398372371,1765559272990,-2425.27,0.00044109,120]
[398372373,1765559273043,-6704.86,0.00044109,120]
[398372375,1765559273092,-597.47,0.00044109,120]
[398372377,1765559273141,-1143.61,0.00044109,120]
[398372378,1765559273187,-1325.92,0.00044109,120]
[398372380,1765559273241,-1251.6,0.00044109,120]
[398372382,1765559273294,-3129.74,0.00044109,120]
[398372384,1765559273348,-2104.79,0.00044109,120]
[398372386,1765559273403,-3190.1,0.00044109,120]
[398372388,1765559273456,-3783.5,0.00044109,120]
[398372390,1765559273509,-1478.1,0.00044109,120]
[398372392,1765559273563,-10320.71,0.00044109,120]
[398372394,1765559273615,-1170.68,0.00044109,120]
[398372396,1765559273664,-500.0,0.00044109,120]
[398372397,1765559273713,-1983.33,0.00044109,120]
[398372399,1765559273762,-1523.65,0.00044109,120]
[398372401,1765559273809,-830.76,0.00044109,120]
[398372403,1765559273854,-500.0,0.00044109,120]
[398372405,1765559273902,-1671.52,0.00044109,120]
[398372407,1765559273950,-2738.41,0.00044109,120]
[398372408,1765559273999,-500.0,0.00044109,120]
[398372410,1765559274052,-1681.97,0.00044109,120]
[398372412,1765559274105,-888.0,0.00044109,120]
[398372414,1765559274160,-2139.91,0.00044109,120]
[398372416,1765559274212,-2298.72,0.00044109,120]
[398372419,1765559274367,-1481.27,0.00044109,120]
[398372421,1765559274425,-1504.62,0.00044109,120]
[398372423,1765559274480,-5032.62,0.00044109,120]
[398372425,1765559274529,-500.0,0.00044109,120]
[398372427,1765559274581,-1875.89,0.00044109,120]
[398372429,1765559274634,-672.23,0.00044109,120]
[398372431,1765559274681,-500.0,0.00044109,120]
[398372433,1765559274726,-558.94,0.00044109,120]
[398372434,1765559274769,-1234.93,0.00044109,120]
[398372436,1765559274815,-20681.97,0.00044109,120]
[398372438,1765559274860,-362.21139319,0.00044109,60]
[398372440,1765559274905,-1641.36,0.00044109,120]
[398372442,1765559274953,-2038.97,0.00044109,120]
[398372444,1765559275000,-500.0,0.00044109,120]
[398372445,1765559275046,-500.0,0.00044109,120]
[398372447,1765559275107,-500.0,0.00044109,120]
[398372449,1765559275159,-1642.86,0.00044109,120]
[398372451,1765559275208,-319.54965915,0.00044109,120]
[398372453,1765559275254,-513.05,0.00044109,60]
[398372454,1765559275301,-16052.6,0.00044109,120]
[398372456,1765559275349,-1350.51,0.00044109,120]
[398372458,1765559275405,-615.38,0.00044109,120]
[398372460,1765559275453,-1014.18,0.00044109,120]
[398372461,1765559275497,-731.22,0.00044109,120]
[398372463,1765559275549,-500.0,0.00044109,120]
[398372465,1765559275608,-1750.24,0.00044109,120]
[398372467,1765559275656,-2037.28,0.00044109,120]
[398372469,1765559275700,-3597.56,0.00044109,120]
[398372471,1765559275744,-500.0,0.00044109,120]
[398372473,1765559275788,-293.222276,0.00044109,120]
[398372474,1765559275833,-628.99,0.00044109,120]
[398372476,1765559275885,-500.0,0.00044109,120]
[398372478,1765559275933,-500.0,0.00044109,120]
[398372480,1765559275983,-502.64,0.00044109,120]
[398372482,1765559276032,-524.01,0.00044109,120]
[398372484,1765559276081,-500.0,0.00044109,120]
[398372486,1765559276128,-326.0,0.0004432,60]
[398372487,1765559276178,-2425.27,0.00044383,120]
[398372489,1765559276231,-6704.86,0.00044383,120]
[398372491,1765559276282,-597.47,0.00044383,120]
[398372493,1765559276341,-1143.61,0.00044383,120]
[398372495,1765559276403,-1325.92,0.00044383,120]
[398372497,1765559276458,-1251.6,0.00044383,120]
[398372499,1765559276514,-3129.74,0.00044383,120]
[398372501,1765559276561,-2104.79,0.00044383,120]
[398372502,1765559276611,-3190.1,0.00044383,120]
[398372504,1765559276664,-3783.5,0.00044383,120]
[398372506,1765559276717,-1478.1,0.00044383,120]
[398372508,1765559276768,-10320.71,0.00044383,120]
[398372510,1765559276816,-1170.68,0.00044383,120]
[398372511,1765559276861,-500.0,0.00044383,120]
[398372513,1765559276911,-1983.33,0.00044383,120]
[398372515,1765559276958,-1523.65,0.00044383,120]
[398372517,1765559277005,-830.76,0.00044383,120]
[398372519,1765559277051,-500.0,0.00044383,120]
[398372521,1765559277094,-1671.52,0.00044383,120]
[398372523,1765559277147,-2738.41,0.00044383,120]
[398372525,1765559277189,-500.0,0.00044383,120]
[398372526,1765559277240,-1681.97,0.00044383,120]
[398372528,1765559277290,-888.0,0.00044383,120]
[398372530,1765559277338,-2139.91,0.00044383,120]
[398372531,1765559277391,-2298.72,0.00044383,120]
[398372532,1765559277441,-1481.27,0.00044383,120]
[398372533,1765559277491,-1504.62,0.00044383,120]